[Event "Titled Tuesday Blitz August 17 2021"]
[White "Lopez Gracia, Fernando"]
[Black "Christensen, Thomas"]
[WhiteFideId "2207184"]
[BlackFideId "1403532"]
[WhiteElo "2351"]
[BlackElo "2243"]
[Result "1-0"]
[Round "05"]
[TimeControl "180+1"]
[Date "2021.08.18"]
[WhiteClock "0:00:38"]
[BlackClock "0:00:01"]

1. c4 {[%clk 0:03:00]}  Nc6 {[%clk 0:02:59]} 2. e4 {[%clk 0:02:59]}  e5 {[%clk 0:02:59]} 3. Nc3 {[%clk 0:02:56]}  Bc5 {[%clk 0:03:00]} 4. Nf3 {[%clk 0:02:55]}  d6 {[%clk 0:02:59]} 5. Be2 {[%clk 0:02:54]}  a6 {[%clk 0:02:59]} 6. O-O {[%clk 0:02:55]}  Nge7 {[%clk 0:02:59]} 7. d3 {[%clk 0:02:54]}  O-O {[%clk 0:03:00]} 8. Be3 {[%clk 0:02:55]}  Bxe3 {[%clk 0:02:59]} 9. fxe3 {[%clk 0:02:56]}  f5 {[%clk 0:03:00]} 10. Nd2 {[%clk 0:02:55]}  Ng6 {[%clk 0:02:58]} 11. exf5 {[%clk 0:02:52]}  Bxf5 {[%clk 0:02:59]} 12. Nde4 {[%clk 0:02:53]}  Qh4 {[%clk 0:02:43]} 13. g3 {[%clk 0:02:51]}  Qh6 {[%clk 0:02:42]} 14. Qd2 {[%clk 0:02:44]}  Bh3 {[%clk 0:02:42]} 15. Rf2 {[%clk 0:02:31]}  Rxf2 {[%clk 0:02:38]} 16. Nxf2 {[%clk 0:02:29]}  Nd4 {[%clk 0:02:19]} 17. Rd1 {[%clk 0:02:23]}  Nxe2+ {[%clk 0:02:16]} 18. Qxe2 {[%clk 0:02:21]}  Rf8 {[%clk 0:02:17]} 19. Nxh3 {[%clk 0:02:21]}  Qxh3 {[%clk 0:02:17]} 20. Rf1 {[%clk 0:02:21]}  Rxf1+ {[%clk 0:02:01]} 21. Qxf1 {[%clk 0:02:22]}  Qxf1+ {[%clk 0:02:02]} 22. Kxf1 {[%clk 0:02:22]}  Kf7 {[%clk 0:01:57]} 23. Kf2 {[%clk 0:02:21]}  Ke6 {[%clk 0:01:57]} 24. d4 {[%clk 0:02:19]}  c6 {[%clk 0:01:46]} 25. b4 {[%clk 0:02:17]}  Ne7 {[%clk 0:01:43]} 26. Kf3 {[%clk 0:02:13]}  Nf5 {[%clk 0:01:37]} 27. Ne2 {[%clk 0:02:03]}  d5 {[%clk 0:01:26]} 28. c5 {[%clk 0:02:02]}  e4+ {[%clk 0:01:23]} 29. Kf2 {[%clk 0:02:00]}  g5 {[%clk 0:01:21]} 30. Nc1 {[%clk 0:01:54]}  h6 {[%clk 0:01:09]} 31. Nb3 {[%clk 0:01:52]}  Kd7 {[%clk 0:01:08]} 32. Na1 {[%clk 0:01:39]}  Ke6 {[%clk 0:01:06]} 33. Nc2 {[%clk 0:01:40]}  Kd7 {[%clk 0:01:02]} 34. Kg2 {[%clk 0:01:39]}  h5 {[%clk 0:00:57]} 35. Kh3 {[%clk 0:01:39]}  g4+ {[%clk 0:00:48]} 36. Kg2 {[%clk 0:01:39]}  Nh6 {[%clk 0:00:40]} 37. Kf2 {[%clk 0:01:39]}  Ng8 {[%clk 0:00:39]} 38. Ne1 {[%clk 0:01:39]}  Nf6 {[%clk 0:00:40]} 39. Ng2 {[%clk 0:01:38]}  Ke6 {[%clk 0:00:38]} 40. Nf4+ {[%clk 0:01:37]}  Kd7 {[%clk 0:00:39]} 41. Ng6 {[%clk 0:01:37]}  Kc7 {[%clk 0:00:32]} 42. a4 {[%clk 0:01:34]}  Kd7 {[%clk 0:00:31]} 43. Ne5+ {[%clk 0:01:33]}  Kc7 {[%clk 0:00:31]} 44. Nf7 {[%clk 0:01:32]}  Kd7 {[%clk 0:00:29]} 45. Ng5 {[%clk 0:01:33]}  Kc7 {[%clk 0:00:30]} 46. Ne6+ {[%clk 0:01:28]}  Kc8 {[%clk 0:00:30]} 47. Nf4 {[%clk 0:01:29]}  Kc7 {[%clk 0:00:30]} 48. Ke2 {[%clk 0:01:27]}  Kc8 {[%clk 0:00:30]} 49. Kd2 {[%clk 0:01:28]}  Kc7 {[%clk 0:00:30]} 50. Kc3 {[%clk 0:01:28]}  Kc8 {[%clk 0:00:30]} 51. b5 {[%clk 0:01:26]}  axb5 {[%clk 0:00:30]} 52. axb5 {[%clk 0:01:26]}  Kc7 {[%clk 0:00:29]} 53. Kb4 {[%clk 0:01:27]}  Kc8 {[%clk 0:00:18]} 54. Ka5 {[%clk 0:01:26]}  Kc7 {[%clk 0:00:18]} 55. Ne6+ {[%clk 0:01:26]}  Kb8 {[%clk 0:00:16]} 56. Kb6 {[%clk 0:01:25]}  Nd7+ {[%clk 0:00:14]} 57. Ka5 {[%clk 0:01:26]}  Nf6 {[%clk 0:00:14]} 58. bxc6 {[%clk 0:01:25]}  bxc6 {[%clk 0:00:14]} 59. Kb6 {[%clk 0:01:25]}  Ng8 {[%clk 0:00:04]} 60. Kxc6 {[%clk 0:01:24]}  Ne7+ {[%clk 0:00:04]} 61. Kd6 {[%clk 0:01:24]}  Nf5+ {[%clk 0:00:05]} 62. Kxd5 {[%clk 0:01:23]}  Nxe3+ {[%clk 0:00:06]} 63. Kxe4 {[%clk 0:01:23]}  Nf1 {[%clk 0:00:07]} 64. Nf4 {[%clk 0:01:22]}  Nxh2 {[%clk 0:00:07]} 65. Nxh5 {[%clk 0:01:23]}  Nf1 {[%clk 0:00:07]} 66. d5 {[%clk 0:01:21]}  Nd2+ {[%clk 0:00:07]} 67. Ke5 {[%clk 0:01:20]}  Kc7 {[%clk 0:00:08]} 68. Ke6 {[%clk 0:01:20]}  Ne4 {[%clk 0:00:07]} 69. d6+ {[%clk 0:01:15]}  Kc6 {[%clk 0:00:05]} 70. d7 {[%clk 0:01:15]}  Nxc5+ {[%clk 0:00:05]} 71. Kf5 {[%clk 0:01:13]}  Nxd7 {[%clk 0:00:06]} 72. Kxg4 {[%clk 0:01:13]}  Kd6 {[%clk 0:00:06]} 73. Kg5 {[%clk 0:01:13]}  Ne5 {[%clk 0:00:04]} 74. Kf6 {[%clk 0:01:06]}  Ng4+ {[%clk 0:00:04]} 75. Kg5 {[%clk 0:01:06]}  Nf2 {[%clk 0:00:04]} 76. Kf5 {[%clk 0:01:04]}  Ke7 {[%clk 0:00:04]} 77. Nf4 {[%clk 0:01:04]}  Kf7 {[%clk 0:00:04]} 78. Nh5 {[%clk 0:01:04]}  Ke7 {[%clk 0:00:04]} 79. Ng7 {[%clk 0:01:03]}  Kf7 {[%clk 0:00:04]} 80. Ne6 {[%clk 0:01:04]}  Ke7 {[%clk 0:00:04]} 81. Nf4 {[%clk 0:01:04]}  Kf7 {[%clk 0:00:05]} 82. Nd5 {[%clk 0:01:05]}  Kg7 {[%clk 0:00:05]} 83. Ne7 {[%clk 0:01:03]}  Kf7 {[%clk 0:00:05]} 84. Nc6 {[%clk 0:01:03]}  Kg7 {[%clk 0:00:06]} 85. Ne5 {[%clk 0:01:03]}  Kh7 {[%clk 0:00:06]} 86. Ng4 {[%clk 0:00:59]}  Nd3 {[%clk 0:00:02]} 87. Nf6+ {[%clk 0:00:58]}  Kg7 {[%clk 0:00:02]} 88. g4 {[%clk 0:00:57]}  Nc1 {[%clk 0:00:02]} 89. Nh5+ {[%clk 0:00:53]}  Kh6 {[%clk 0:00:02]} 90. Nf4 {[%clk 0:00:40]}  Nb3 {[%clk 0:00:01]} 91. Kf6 {[%clk 0:00:38]} 1-0


[Site "https://www.chess.com"]

[Event "Titled Tuesday Blitz August 17 2021"]
[White "Maghsoodloo, Parham"]
[Black "Karttunen, Mika"]
[WhiteFideId "12539929"]
[BlackFideId "502081"]
[WhiteElo "2601"]
[BlackElo "2343"]
[Result "1-0"]
[Round "05"]
[TimeControl "180+1"]
[Date "2021.08.17"]
[WhiteClock "0:01:42"]
[BlackClock "0:00:16"]

1. d4 {[%clk 0:03:00]}  Nf6 {[%clk 0:02:59]} 2. c4 {[%clk 0:03:01]}  g6 {[%clk 0:03:00]} 3. Nc3 {[%clk 0:03:00]}  d5 {[%clk 0:03:00]} 4. cxd5 {[%clk 0:02:54]}  Nxd5 {[%clk 0:03:00]} 5. Bd2 {[%clk 0:02:55]}  Nb6 {[%clk 0:02:59]} 6. Bf4 {[%clk 0:02:49]}  Bg7 {[%clk 0:02:57]} 7. e3 {[%clk 0:02:49]}  O-O {[%clk 0:02:55]} 8. Nf3 {[%clk 0:02:49]}  c5 {[%clk 0:02:49]} 9. dxc5 {[%clk 0:02:46]}  Qxd1+ {[%clk 0:02:46]} 10. Rxd1 {[%clk 0:02:46]}  Bxc3+ {[%clk 0:02:46]} 11. bxc3 {[%clk 0:02:46]}  Na4 {[%clk 0:02:42]} 12. Bh6 {[%clk 0:02:46]}  Nc6 {[%clk 0:01:54]} 13. Bxf8 {[%clk 0:02:23]}  Kxf8 {[%clk 0:01:54]} 14. Nd4 {[%clk 0:02:23]}  Nxc5 {[%clk 0:01:47]} 15. Nxc6 {[%clk 0:02:23]}  bxc6 {[%clk 0:01:47]} 16. Rd8+ {[%clk 0:02:23]}  Kg7 {[%clk 0:01:48]} 17. Bc4 {[%clk 0:02:22]}  Bb7 {[%clk 0:01:28]} 18. Rxa8 {[%clk 0:02:21]}  Bxa8 {[%clk 0:01:28]} 19. f3 {[%clk 0:02:15]}  Kf8 {[%clk 0:01:27]} 20. h4 {[%clk 0:02:15]}  h5 {[%clk 0:01:27]} 21. Kd2 {[%clk 0:02:11]}  Bb7 {[%clk 0:01:26]} 22. Rb1 {[%clk 0:02:10]}  Ke8 {[%clk 0:01:22]} 23. e4 {[%clk 0:02:09]}  e5 {[%clk 0:01:21]} 24. Ke3 {[%clk 0:02:08]}  f6 {[%clk 0:01:21]} 25. g4 {[%clk 0:02:03]}  hxg4 {[%clk 0:01:15]} 26. fxg4 {[%clk 0:02:04]}  Kf8 {[%clk 0:01:13]} 27. Rf1 {[%clk 0:01:55]}  Ke7 {[%clk 0:01:03]} 28. g5 {[%clk 0:01:55]}  Nd7 {[%clk 0:01:02]} 29. gxf6+ {[%clk 0:01:47]}  Nxf6 {[%clk 0:01:02]} 30. Rg1 {[%clk 0:01:48]}  c5 {[%clk 0:01:02]} 31. Rxg6 {[%clk 0:01:48]}  Nh5 {[%clk 0:00:15]} 32. Re6+ {[%clk 0:01:45]}  Kd7 {[%clk 0:00:14]} 33. Rxe5 {[%clk 0:01:46]}  Nf6 {[%clk 0:00:15]} 34. Rf5 {[%clk 0:01:44]}  Nxe4 {[%clk 0:00:15]} 35. Rf7+ {[%clk 0:01:43]}  Kc8 {[%clk 0:00:15]} 36. Be6+ {[%clk 0:01:41]}  Kb8 {[%clk 0:00:15]} 37. Rxb7+ {[%clk 0:01:41]}  Kxb7 {[%clk 0:00:16]} 38. Kxe4 {[%clk 0:01:42]} 1-0


[Site "https://www.chess.com"]

[Event "Titled Tuesday Blitz August 17 2021"]
[White "Makhnev, Denis"]
[Black "Nitin, S."]
[WhiteFideId "13707647"]
[BlackFideId "5018277"]
[WhiteElo "2537"]
[BlackElo "2431"]
[Result "1-0"]
[Round "05"]
[TimeControl "180+1"]
[Date "2021.08.17"]
[WhiteClock "0:00:01"]
[BlackClock "0:00:01"]

1. d4 {[%clk 0:03:00]}  Nf6 {[%clk 0:02:58]} 2. c4 {[%clk 0:03:01]}  g6 {[%clk 0:02:58]} 3. Nc3 {[%clk 0:03:01]}  Bg7 {[%clk 0:02:58]} 4. e4 {[%clk 0:03:02]}  d6 {[%clk 0:02:58]} 5. h3 {[%clk 0:03:02]}  O-O {[%clk 0:02:57]} 6. Be3 {[%clk 0:03:02]}  Na6 {[%clk 0:02:56]} 7. Nf3 {[%clk 0:02:56]}  c6 {[%clk 0:02:56]} 8. Bd3 {[%clk 0:02:53]}  e5 {[%clk 0:02:55]} 9. O-O {[%clk 0:02:54]}  exd4 {[%clk 0:02:54]} 10. Bxd4 {[%clk 0:02:54]}  Re8 {[%clk 0:02:54]} 11. Re1 {[%clk 0:02:54]}  Nc7 {[%clk 0:02:47]} 12. Qd2 {[%clk 0:02:51]}  Ne6 {[%clk 0:02:45]} 13. Be3 {[%clk 0:02:51]}  Nd7 {[%clk 0:02:44]} 14. Rad1 {[%clk 0:02:49]}  Ne5 {[%clk 0:02:44]} 15. Be2 {[%clk 0:02:49]}  Nxf3+ {[%clk 0:02:38]} 16. Bxf3 {[%clk 0:02:50]}  Be5 {[%clk 0:02:38]} 17. Bg4 {[%clk 0:02:51]}  Qf6 {[%clk 0:02:37]} 18. Ne2 {[%clk 0:02:22]}  h5 {[%clk 0:02:22]} 19. Bxe6 {[%clk 0:02:18]}  Qxe6 {[%clk 0:02:23]} 20. b3 {[%clk 0:02:15]}  Qe7 {[%clk 0:02:13]} 21. Bg5 {[%clk 0:02:09]}  Qc7 {[%clk 0:02:10]} 22. f4 {[%clk 0:01:57]}  Bg7 {[%clk 0:02:02]} 23. Ng3 {[%clk 0:01:58]}  b5 {[%clk 0:01:31]} 24. cxb5 {[%clk 0:01:49]}  cxb5 {[%clk 0:01:29]} 25. Qxd6 {[%clk 0:01:47]}  Qb6+ {[%clk 0:01:28]} 26. Kh2 {[%clk 0:01:45]}  Be6 {[%clk 0:01:21]} 27. e5 {[%clk 0:01:29]}  Bf8 {[%clk 0:01:14]} 28. Qd2 {[%clk 0:01:23]}  Bg7 {[%clk 0:01:02]} 29. Ne4 {[%clk 0:01:22]}  Rec8 {[%clk 0:00:53]} 30. Rc1 {[%clk 0:01:03]}  a5 {[%clk 0:00:45]} 31. Red1 {[%clk 0:00:57]}  a4 {[%clk 0:00:35]} 32. Nf6+ {[%clk 0:00:56]}  Kh8 {[%clk 0:00:29]} 33. bxa4 {[%clk 0:00:45]}  bxa4 {[%clk 0:00:29]} 34. a3 {[%clk 0:00:45]}  Rxc1 {[%clk 0:00:24]} 35. Rxc1 {[%clk 0:00:44]}  Rd8 {[%clk 0:00:22]} 36. Qc2 {[%clk 0:00:37]}  Rb8 {[%clk 0:00:19]} 37. Qxa4 {[%clk 0:00:35]}  Bxf6 {[%clk 0:00:17]} 38. Bxf6+ {[%clk 0:00:35]}  Kh7 {[%clk 0:00:17]} 39. Qd1 {[%clk 0:00:27]}  Qe3 {[%clk 0:00:16]} 40. Bg5 {[%clk 0:00:21]}  Rb2 {[%clk 0:00:15]} 41. Rc2 {[%clk 0:00:16]}  Rb3 {[%clk 0:00:11]} 42. a4 {[%clk 0:00:06]}  Qg3+ {[%clk 0:00:11]} 43. Kh1 {[%clk 0:00:06]}  Bf5 {[%clk 0:00:09]} 44. Rd2 {[%clk 0:00:06]}  Rb1 {[%clk 0:00:09]} 45. a5 {[%clk 0:00:06]}  Qb3 {[%clk 0:00:08]} 46. Qxb1 {[%clk 0:00:05]}  Qxb1+ {[%clk 0:00:08]} 47. Kh2 {[%clk 0:00:06]}  Be4 {[%clk 0:00:07]} 48. Bf6 {[%clk 0:00:05]}  g5 {[%clk 0:00:06]} 49. Bxg5 {[%clk 0:00:04]}  Qc1 {[%clk 0:00:06]} 50. Ra2 {[%clk 0:00:04]}  Qc4 {[%clk 0:00:05]} 51. Rf2 {[%clk 0:00:04]}  Qd4 {[%clk 0:00:05]} 52. Bh4 {[%clk 0:00:03]}  Qa4 {[%clk 0:00:03]} 53. Bd8 {[%clk 0:00:03]}  Qd4 {[%clk 0:00:03]} 54. Bb6 {[%clk 0:00:04]}  Qa4 {[%clk 0:00:02]} 55. Rd2 {[%clk 0:00:04]}  Kg6 {[%clk 0:00:02]} 56. Rd6+ {[%clk 0:00:04]}  Kg7 {[%clk 0:00:02]} 57. Rd4 {[%clk 0:00:03]}  Qc2 {[%clk 0:00:02]} 58. Kg3 {[%clk 0:00:03]}  Qxg2+ {[%clk 0:00:02]} 59. Kh4 {[%clk 0:00:04]}  Qf2+ {[%clk 0:00:01]} 60. Kxh5 {[%clk 0:00:04]}  Qf3+ {[%clk 0:00:01]} 61. Kh4 {[%clk 0:00:04]}  Bf5 {[%clk 0:00:01]} 62. Rd3 {[%clk 0:00:01]}  Qxd3 {[%clk 0:00:01]} 63. Kg5 {[%clk 0:00:01]} 1-0


[Site "https://www.chess.com"]

[Event "Titled Tuesday Blitz August 17 2021"]
[White "Manukyan, Sargis A."]
[Black "Quparadze, Giga"]
[WhiteFideId "13303970"]
[BlackFideId "13602250"]
[WhiteElo "2187"]
[BlackElo "2658"]
[Result "0-1"]
[Round "05"]
[TimeControl "180+1"]
[Date "2021.08.17"]
[WhiteClock "0:00:21"]
[BlackClock "0:01:34"]

1. d4 {[%clk 0:03:00]}  Nf6 {[%clk 0:02:58]} 2. c4 {[%clk 0:03:00]}  e6 {[%clk 0:02:58]} 3. Nc3 {[%clk 0:03:00]}  Bb4 {[%clk 0:02:57]} 4. Bd2 {[%clk 0:03:01]}  O-O {[%clk 0:02:57]} 5. Nf3 {[%clk 0:03:00]}  c5 {[%clk 0:02:56]} 6. a3 {[%clk 0:02:59]}  Bxc3 {[%clk 0:02:56]} 7. Bxc3 {[%clk 0:03:00]}  Ne4 {[%clk 0:02:56]} 8. Rc1 {[%clk 0:02:56]}  b6 {[%clk 0:02:54]} 9. e3 {[%clk 0:02:49]}  Bb7 {[%clk 0:02:54]} 10. Bd3 {[%clk 0:02:49]}  Nxc3 {[%clk 0:02:53]} 11. Rxc3 {[%clk 0:02:48]}  d6 {[%clk 0:02:53]} 12. O-O {[%clk 0:02:46]}  Nd7 {[%clk 0:02:52]} 13. Qc2 {[%clk 0:02:44]}  Bxf3 {[%clk 0:02:51]} 14. gxf3 {[%clk 0:02:37]}  cxd4 {[%clk 0:02:50]} 15. exd4 {[%clk 0:02:36]}  Qh4 {[%clk 0:02:49]} 16. Qd2 {[%clk 0:02:29]}  Kh8 {[%clk 0:02:46]} 17. Qe3 {[%clk 0:02:29]}  Nf6 {[%clk 0:02:45]} 18. Kh1 {[%clk 0:02:20]}  Rae8 {[%clk 0:02:43]} 19. Rg1 {[%clk 0:02:10]}  e5 {[%clk 0:02:39]} 20. d5 {[%clk 0:02:08]}  h6 {[%clk 0:02:35]} 21. Bf5 {[%clk 0:01:58]}  g6 {[%clk 0:02:32]} 22. Be4 {[%clk 0:01:54]}  Qf4 {[%clk 0:02:27]} 23. b4 {[%clk 0:01:47]}  Rc8 {[%clk 0:02:26]} 24. Qxf4 {[%clk 0:01:39]}  exf4 {[%clk 0:02:27]} 25. Rgc1 {[%clk 0:01:39]}  Rfe8 {[%clk 0:02:26]} 26. c5 {[%clk 0:01:37]}  bxc5 {[%clk 0:02:26]} 27. bxc5 {[%clk 0:01:36]}  Rxc5 {[%clk 0:02:26]} 28. Rxc5 {[%clk 0:01:37]}  dxc5 {[%clk 0:02:26]} 29. Rxc5 {[%clk 0:01:37]}  Nxe4 {[%clk 0:02:22]} 30. fxe4 {[%clk 0:01:36]}  Rxe4 {[%clk 0:02:23]} 31. Rc7 {[%clk 0:01:29]}  f3 {[%clk 0:02:23]} 32. h3 {[%clk 0:01:25]}  Kg7 {[%clk 0:02:23]} 33. Rxa7 {[%clk 0:01:17]}  Re2 {[%clk 0:02:20]} 34. Kg1 {[%clk 0:01:16]}  Rd2 {[%clk 0:02:20]} 35. Rd7 {[%clk 0:01:06]}  Ra2 {[%clk 0:02:03]} 36. Ra7 {[%clk 0:01:04]}  h5 {[%clk 0:02:04]} 37. h4 {[%clk 0:01:02]}  Rd2 {[%clk 0:01:59]} 38. Rd7 {[%clk 0:01:01]}  Rd4 {[%clk 0:01:59]} 39. Kh2 {[%clk 0:00:57]}  Rg4 {[%clk 0:01:54]} 40. d6 {[%clk 0:00:48]}  Rg2+ {[%clk 0:01:53]} 41. Kh3 {[%clk 0:00:48]}  Rxf2 {[%clk 0:01:54]} 42. Kg3 {[%clk 0:00:48]}  Ra2 {[%clk 0:01:53]} 43. Ra7 {[%clk 0:00:47]}  f2 {[%clk 0:01:53]} 44. Kg2 {[%clk 0:00:47]}  Rd2 {[%clk 0:01:52]} 45. d7 {[%clk 0:00:42]}  Kf6 {[%clk 0:01:51]} 46. a4 {[%clk 0:00:42]}  Ke6 {[%clk 0:01:50]} 47. d8=Q {[%clk 0:00:29]}  Rxd8 {[%clk 0:01:47]} 48. Kxf2 {[%clk 0:00:30]}  Rd4 {[%clk 0:01:47]} 49. Kg3 {[%clk 0:00:29]}  Rd3+ {[%clk 0:01:47]} 50. Kf4 {[%clk 0:00:25]}  Kf6 {[%clk 0:01:40]} 51. Ra6+ {[%clk 0:00:24]}  Kg7 {[%clk 0:01:40]} 52. Ra7 {[%clk 0:00:16]}  Rh3 {[%clk 0:01:39]} 53. Kg5 {[%clk 0:00:16]}  Rg3+ {[%clk 0:01:39]} 54. Kf4 {[%clk 0:00:15]}  Rg4+ {[%clk 0:01:40]} 55. Ke5 {[%clk 0:00:16]}  Rxh4 {[%clk 0:01:40]} 56. a5 {[%clk 0:00:17]}  Ra4 {[%clk 0:01:40]} 57. Kd6 {[%clk 0:00:18]}  h4 {[%clk 0:01:40]} 58. Ke7 {[%clk 0:00:19]}  h3 {[%clk 0:01:37]} 59. Ke8 {[%clk 0:00:20]}  Re4+ {[%clk 0:01:36]} 60. Kd8 {[%clk 0:00:19]}  h2 {[%clk 0:01:36]} 61. Rc7 {[%clk 0:00:20]}  h1=Q {[%clk 0:01:35]} 62. Rxf7+ {[%clk 0:00:21]}  Kxf7 {[%clk 0:01:34]} 0-1


[Site "https://www.chess.com"]

[Event "Titled Tuesday Blitz August 17 2021"]
[White "Matthiesen, Martin"]
[Black "Rustemov, Alexander"]
[WhiteFideId "1404067"]
[BlackFideId "4119002"]
[WhiteElo "2337"]
[BlackElo "2697"]
[Result "0-1"]
[Round "05"]
[TimeControl "180+1"]
[Date "2021.08.17"]
[WhiteClock "0:00:02"]
[BlackClock "0:00:09"]

1. d4 {[%clk 0:03:00]}  d5 {[%clk 0:02:58]} 2. c4 {[%clk 0:03:00]}  e6 {[%clk 0:02:57]} 3. Nf3 {[%clk 0:02:58]}  Nf6 {[%clk 0:02:56]} 4. Nc3 {[%clk 0:02:58]}  Be7 {[%clk 0:02:55]} 5. Bf4 {[%clk 0:02:57]}  O-O {[%clk 0:02:54]} 6. e3 {[%clk 0:02:57]}  b6 {[%clk 0:02:52]} 7. Bd3 {[%clk 0:02:55]}  Bb7 {[%clk 0:02:47]} 8. O-O {[%clk 0:02:42]}  Nbd7 {[%clk 0:02:47]} 9. cxd5 {[%clk 0:02:36]}  exd5 {[%clk 0:02:44]} 10. Qe2 {[%clk 0:02:33]}  c5 {[%clk 0:02:42]} 11. Ba6 {[%clk 0:02:27]}  Qc8 {[%clk 0:02:38]} 12. Bxb7 {[%clk 0:02:25]}  Qxb7 {[%clk 0:02:39]} 13. dxc5 {[%clk 0:02:17]}  bxc5 {[%clk 0:02:37]} 14. Rfd1 {[%clk 0:02:14]}  Rfd8 {[%clk 0:02:33]} 15. Rd2 {[%clk 0:02:00]}  Nb6 {[%clk 0:02:29]} 16. b3 {[%clk 0:01:54]}  h6 {[%clk 0:02:06]} 17. Rad1 {[%clk 0:01:50]}  Rac8 {[%clk 0:01:53]} 18. h3 {[%clk 0:01:24]}  a6 {[%clk 0:01:46]} 19. Rd3 {[%clk 0:00:57]}  Bf8 {[%clk 0:01:26]} 20. Bh2 {[%clk 0:00:55]}  Re8 {[%clk 0:01:17]} 21. Qc2 {[%clk 0:00:43]}  c4 {[%clk 0:01:15]} 22. bxc4 {[%clk 0:00:41]}  dxc4 {[%clk 0:00:56]} 23. Rd4 {[%clk 0:00:40]}  Bc5 {[%clk 0:00:54]} 24. Rf4 {[%clk 0:00:38]}  Re6 {[%clk 0:00:41]} 25. Nd4 {[%clk 0:00:31]}  Bxd4 {[%clk 0:00:38]} 26. Rfxd4 {[%clk 0:00:31]}  Qc6 {[%clk 0:00:34]} 27. Qd2 {[%clk 0:00:30]}  Na4 {[%clk 0:00:26]} 28. f3 {[%clk 0:00:27]}  Nxc3 {[%clk 0:00:25]} 29. Qxc3 {[%clk 0:00:28]}  Qa4 {[%clk 0:00:18]} 30. R1d2 {[%clk 0:00:27]}  Ree8 {[%clk 0:00:11]} 31. e4 {[%clk 0:00:21]}  a5 {[%clk 0:00:12]} 32. e5 {[%clk 0:00:18]}  Nh7 {[%clk 0:00:12]} 33. Rg4 {[%clk 0:00:16]}  Nf8 {[%clk 0:00:11]} 34. Rd6 {[%clk 0:00:13]}  Qb4 {[%clk 0:00:11]} 35. Qc1 {[%clk 0:00:05]}  Ne6 {[%clk 0:00:10]} 36. Bg3 {[%clk 0:00:02]}  h5 {[%clk 0:00:10]} 37. Rh4 {[%clk 0:00:02]}  g6 {[%clk 0:00:09]} 0-1


[Site "https://www.chess.com"]

[Event "Titled Tuesday Blitz August 17 2021"]
[White "Maximov, Dmitry"]
[Black "Sokolin, Leonid"]
[WhiteFideId "14105659"]
[BlackFideId "2009161"]
[WhiteElo "2494"]
[BlackElo "2394"]
[Result "0-1"]
[Round "05"]
[TimeControl "180+1"]
[Date "2021.08.17"]
[WhiteClock "0:00:06"]
[BlackClock "0:00:09"]

1. e4 {[%clk 0:03:00]}  c5 {[%clk 0:02:59]} 2. Nf3 {[%clk 0:03:00]}  Nc6 {[%clk 0:02:59]} 3. Bb5 {[%clk 0:02:59]}  g6 {[%clk 0:02:59]} 4. Bxc6 {[%clk 0:02:59]}  bxc6 {[%clk 0:02:58]} 5. O-O {[%clk 0:02:58]}  Bg7 {[%clk 0:02:58]} 6. Re1 {[%clk 0:02:59]}  Qc7 {[%clk 0:02:59]} 7. Nc3 {[%clk 0:02:43]}  e5 {[%clk 0:02:57]} 8. a3 {[%clk 0:02:42]}  a5 {[%clk 0:02:42]} 9. Rb1 {[%clk 0:02:31]}  Rb8 {[%clk 0:02:38]} 10. d3 {[%clk 0:02:31]}  Ne7 {[%clk 0:02:35]} 11. h3 {[%clk 0:02:28]}  O-O {[%clk 0:02:34]} 12. Ne2 {[%clk 0:02:27]}  f5 {[%clk 0:02:26]} 13. exf5 {[%clk 0:02:19]}  Nxf5 {[%clk 0:02:18]} 14. Bd2 {[%clk 0:02:02]}  a4 {[%clk 0:02:15]} 15. Bc3 {[%clk 0:02:00]}  d5 {[%clk 0:02:08]} 16. Ng3 {[%clk 0:01:45]}  Nd4 {[%clk 0:02:08]} 17. Nh2 {[%clk 0:01:33]}  Qf7 {[%clk 0:02:03]} 18. Qd2 {[%clk 0:01:22]}  h5 {[%clk 0:01:57]} 19. h4 {[%clk 0:01:17]}  Kh7 {[%clk 0:01:56]} 20. Bxd4 {[%clk 0:01:15]}  cxd4 {[%clk 0:01:34]} 21. Nf3 {[%clk 0:01:15]}  Bh6 {[%clk 0:01:20]} 22. Qe2 {[%clk 0:01:11]}  Re8 {[%clk 0:01:02]} 23. Nxd4 {[%clk 0:00:39]}  Bg4 {[%clk 0:01:02]} 24. Nf3 {[%clk 0:00:39]}  Qf4 {[%clk 0:00:53]} 25. Qe3 {[%clk 0:00:30]}  Qxe3 {[%clk 0:00:44]} 26. fxe3 {[%clk 0:00:30]}  Re6 {[%clk 0:00:24]} 27. Kh2 {[%clk 0:00:25]}  Rf8 {[%clk 0:00:23]} 28. Rf1 {[%clk 0:00:20]}  Kg7 {[%clk 0:00:21]} 29. e4 {[%clk 0:00:18]}  d4 {[%clk 0:00:20]} 30. Ng5 {[%clk 0:00:18]}  Ref6 {[%clk 0:00:17]} 31. Rxf6 {[%clk 0:00:16]}  Rxf6 {[%clk 0:00:17]} 32. Rf1 {[%clk 0:00:15]}  Rxf1 {[%clk 0:00:16]} 33. Nxf1 {[%clk 0:00:15]}  Bd1 {[%clk 0:00:16]} 34. c3 {[%clk 0:00:14]}  Bc2 {[%clk 0:00:16]} 35. cxd4 {[%clk 0:00:14]}  Bxd3 {[%clk 0:00:17]} 36. Nd2 {[%clk 0:00:11]}  Bxg5 {[%clk 0:00:15]} 37. hxg5 {[%clk 0:00:11]}  exd4 {[%clk 0:00:16]} 38. Kg3 {[%clk 0:00:11]}  Kf7 {[%clk 0:00:16]} 39. Kf4 {[%clk 0:00:12]}  Ke6 {[%clk 0:00:16]} 40. Nf3 {[%clk 0:00:12]}  c5 {[%clk 0:00:15]} 41. Ne5 {[%clk 0:00:12]}  Bc2 {[%clk 0:00:13]} 42. Nxg6 {[%clk 0:00:12]}  c4 {[%clk 0:00:13]} 43. Ne5 {[%clk 0:00:11]}  c3 {[%clk 0:00:13]} 44. bxc3 {[%clk 0:00:11]}  dxc3 {[%clk 0:00:13]} 45. Nc6 {[%clk 0:00:10]}  Kd6 {[%clk 0:00:12]} 46. Nb4 {[%clk 0:00:09]}  Bb3 {[%clk 0:00:11]} 47. Ke3 {[%clk 0:00:09]}  Ke5 {[%clk 0:00:11]} 48. Nd3+ {[%clk 0:00:08]}  Ke6 {[%clk 0:00:11]} 49. Kd4 {[%clk 0:00:07]}  c2 {[%clk 0:00:11]} 50. Nc1 {[%clk 0:00:07]}  Kf7 {[%clk 0:00:10]} 51. Kc3 {[%clk 0:00:06]}  Kg6 {[%clk 0:00:10]} 52. Kb2 {[%clk 0:00:04]}  Kxg5 {[%clk 0:00:10]} 53. Nxb3 {[%clk 0:00:04]}  axb3 {[%clk 0:00:10]} 54. a4 {[%clk 0:00:04]}  Kf4 {[%clk 0:00:08]} 55. a5 {[%clk 0:00:05]}  Kxe4 {[%clk 0:00:08]} 56. a6 {[%clk 0:00:05]}  Ke3 {[%clk 0:00:08]} 57. Kc1 {[%clk 0:00:02]}  Kd3 {[%clk 0:00:08]} 58. Kb2 {[%clk 0:00:02]}  Kd2 {[%clk 0:00:08]} 59. a7 {[%clk 0:00:02]}  c1=Q+ {[%clk 0:00:08]} 60. Kxb3 {[%clk 0:00:03]}  Qa1 {[%clk 0:00:08]} 61. Kc4 {[%clk 0:00:03]}  Qxa7 {[%clk 0:00:08]} 62. Kd5 {[%clk 0:00:03]}  Qg7 {[%clk 0:00:08]} 63. Ke4 {[%clk 0:00:04]}  Qxg2+ {[%clk 0:00:08]} 64. Kf4 {[%clk 0:00:04]}  h4 {[%clk 0:00:08]} 65. Ke5 {[%clk 0:00:05]}  h3 {[%clk 0:00:09]} 66. Kf6 {[%clk 0:00:06]}  h2 {[%clk 0:00:09]} 0-1


[Site "https://www.chess.com"]